bitfinex/quotes_ETHUSD_20230109
["timestamp","ask_amount","ask_price","bid_price","bid_amount"]
[1673298827181,27.90055801,1323.8,1323.7,0.90223]
[1673298827509,30.73316417,1323.8,1323.7,0.90223]
[1673298828546,29.31996032,1323.8,1323.7,0.90223]
[1673298828916,27.05387539,1323.8,1323.7,0.90223]
[1673298832960,29.31567699,1323.8,1323.7,0.90223]
[1673298833493,27.05387539,1323.8,1323.7,0.90223]
[1673298836391,36.54340663,1323.8,1323.7,0.90223]
[1673298837539,42.98829782,1323.8,1323.7,0.90223]
[1673298837758,43.38683106,1323.8,1323.7,0.90223]
[1673298837977,47.91927969,1323.8,1323.7,0.90223]
[1673298838307,42.8433885,1323.8,1323.7,0.90223]
[1673298838736,0.32557127,1323.6,1323.3,0.066]
[1673298838949,0.32557127,1323.6,1323.1,16.8768]
[1673298838950,5.54983974,1323.4,1323.1,16.8768]
[1673298839115,1.369,1323.2,1323.1,16.8168]
[1673298839492,1.369,1323.2,1323.1,8.006]
[1673298840003,25.59660321,1323.3,1323.1,8.006]
[1673298840004,26.96560321,1323.3,1323.1,8.006]
[1673298841685,26.96560321,1323.3,1323.2,3.0]
[1673298842809,25.26770478,1323.3,1323.2,3.21183017]
[1673298843222,25.26770478,1323.3,1323.2,10.76926017]
[1673298843223,1.22812478,1323.3,1323.2,10.76926017]
[1673298843437,11.8413673,1323.4,1323.2,3.21783017]
[1673298843677,19.3979173,1323.4,1323.2,3.21183017]
[1673298843901,18.0429173,1323.4,1323.2,3.21183017]
[1673298844747,25.5994673,1323.4,1323.2,3.21183017]
[1673298847051,23.90156887,1323.4,1323.2,3.21183017]
[1673298851102,23.90156887,1323.4,1323.3,16.32066064]
[1673298851103,0.096,1323.4,1323.3,16.32066064]
[1673298851320,0.41657127,1323.6,1323.4,0.175]
[1673298851571,0.32557127,1323.6,1323.5,8.0]
[1673298851788,0.32557127,1323.6,1323.5,15.57172]
[1673298852101,0.32557127,1323.6,1323.5,42.6204747]
[1673298852537,0.32557127,1323.6,1323.5,35.0647547]
[1673298855432,0.32557127,1323.6,1323.5,18.5843147]
[1673298855987,0.32557127,1323.6,1323.5,11.016]
[1673298856181,0.32557127,1323.6,1323.5,18.56972]
[1673298856357,0.32557127,1323.6,1323.5,18.57172]
[1673298856567,0.32557127,1323.6,1323.5,26.12744]
[1673298857273,0.32557127,1323.6,1323.5,18.57172]
[1673298857453,0.32557127,1323.6,1323.5,22.550896]
[1673298857889,0.32557127,1323.6,1323.5,30.106616]
[1673298858100,0.32557127,1323.6,1323.5,22.550896]
[1673298858527,0.32557127,1323.6,1323.5,30.106616]
[1673298858935,0.32557127,1323.6,1323.5,37.662336]
[1673298859351,0.32557127,1323.6,1323.5,30.106616]
[1673298860117,0.32557127,1323.6,1323.5,37.662336]
[1673298861132,0.32557127,1323.6,1323.5,41.45999664]
[1673298861383,0.32557127,1323.6,1323.5,55.46454868]
[1673298861574,0.32557127,1323.6,1323.5,57.68488313]
[1673298861974,0.32557127,1323.6,1323.5,88.68488313]
[1673298862850,0.37557127,1323.6,1323.5,88.68488313]
[1673298863161,0.32557127,1323.6,1323.5,88.68488313]
[1673298863481,0.36861628,1323.9,1323.5,88.68488313]
[1673298863482,0.36861628,1323.9,1323.7,4.523]
[1673298863643,0.36861628,1323.9,1323.8,23.68166064]
[1673298863855,0.36861628,1323.9,1323.8,11.016]
[1673298864275,0.36861628,1323.9,1323.8,18.57001]
[1673298864690,0.36861628,1323.9,1323.8,29.92168064]
[1673298865057,0.36861628,1323.9,1323.8,22.36767064]
[1673298865212,0.36861628,1323.9,1323.8,18.7784117]
[1673298865430,0.36861628,1323.9,1323.8,26.3324217]
[1673298866080,0.36861628,1323.9,1323.8,18.7784117]
[1673298866293,0.36861628,1323.9,1323.8,14.81366064]
[1673298866684,0.36861628,1323.9,1323.8,22.36767064]
[1673298866954,0.36861628,1323.9,1323.8,29.92168064]
[1673298868413,0.36861628,1323.9,1323.8,37.47569064]
[1673298868607,0.36861628,1323.9,1323.8,29.92168064]
[1673298868931,0.36861628,1323.9,1323.8,33.7494947]
[1673298869101,0.36861628,1323.9,1323.8,41.3035047]
[1673298869678,0.36861628,1323.9,1323.8,26.1954847]
[1673298870475,0.36861628,1323.9,1323.8,11.016]
[1673298870732,23.02893628,1323.9,1323.8,11.016]
[1673298870942,16.69862106,1323.9,1323.8,11.016]
[1673298871163,9.14518106,1323.9,1323.8,11.016]
[1673298871468,16.69862106,1323.9,1323.8,11.016]
[1673298871777,9.14518106,1323.9,1323.8,11.016]
[1673298872165,3.28963949,1323.9,1323.8,11.016]
[1673298872375,3.19863949,1323.9,1323.8,3.016]
[1673298872708,19.67451949,1323.9,1323.8,3.0]
[1673298872918,19.76551949,1323.9,1323.8,3.0]
[1673298873140,12.21207949,1323.9,1323.8,3.0]
[1673298873473,10.51418106,1323.9,1323.7,3.066]
[1673298873773,10.51418106,1323.9,1323.7,3.0]
[1673298874297,10.51797515,1323.9,1323.7,3.0]
[1673298874505,18.07141515,1323.9,1323.7,3.0]
[1673298874717,10.51797515,1323.9,1323.7,3.0]
[1673298875931,18.07141515,1323.9,1323.7,3.0]
[1673298876187,10.51797515,1323.9,1323.7,3.0]
[1673298876397,2.96453515,1323.9,1323.7,10.55454]
[1673298876563,2.87353515,1323.9,1323.7,10.57054]
[1673298876986,10.42715515,1323.9,1323.7,3.016]
[1673298877261,10.51815515,1323.9,1323.7,3.0]
[1673298877611,10.51815515,1323.9,1323.7,10.55457]
[1673298877867,18.07177515,1323.9,1323.7,3.016]
[1673298878061,18.07177515,1323.9,1323.7,3.0]
[1673298879239,10.51815515,1323.9,1323.7,3.0]
[1673298879613,19.76967358,1323.9,1323.7,3.0]
[1673298880394,27.32329358,1323.9,1323.7,3.0]
[1673298880993,25.62539515,1323.9,1323.7,3.0]
[1673298882902,27.32329358,1323.9,1323.7,3.0]
[1673298883333,25.62539515,1323.9,1323.7,3.0]
[1673298883524,10.51815515,1323.9,1323.7,3.0]
[1673298883729,18.07177515,1323.9,1323.7,3.0]
[1673298884659,18.07177515,1323.9,1323.7,2.99664798]
[1673298884660,25.62539515,1323.9,1323.7,2.99664798]
[1673298885218,27.32329358,1323.9,1323.7,2.99664798]
[1673298886773,1.13212478,1323.8,1323.7,2.99664798]
[1673298888701,7.55401,1323.8,1323.7,2.99664798]
[1673298889036,8.77713478,1323.8,1323.7,16.99664798]
[1673298889355,8.77713478,1323.8,1323.7,31.01264798]
[1673298889356,1.22312478,1323.8,1323.7,31.01264798]
[1673298889555,1.13212478,1323.8,1323.7,38.56722798]
[1673298890102,1.13212478,1323.8,1323.7,3.01264798]
[1673298890413,1.13212478,1323.8,1323.7,2.99664798]
[1673298890995,2.83002321,1323.8,1323.7,2.99664798]
[1673298891870,2.83002321,1323.8,1323.7,25.99664798]
[1673298892083,2.83002321,1323.8,1323.7,26.01264798]
[1673298892502,2.83002321,1323.8,1323.7,24.01264798]
[1673298892908,2.83002321,1323.8,1323.7,31.56722798]
[1673298893247,2.83002321,1323.8,1323.7,18.12180798]
[1673298893557,1.69789843,1323.8,1323.7,10.56722798]
[1673298893727,1.69789843,1323.8,1323.7,3.01264798]
[1673298893937,1.69789843,1323.8,1323.7,2.99664798]
[1673298894175,2.82955369,1323.8,1323.7,2.99664798]
[1673298894357,2.82955369,1323.8,1323.7,10.55122798]
[1673298894576,2.82955369,1323.8,1323.7,10.56722798]
[1673298895230,2.82961563,1323.8,1323.7,10.56722798]
[1673298895437,2.82961563,1323.8,1323.7,25.67638798]
[1673298895611,1.1317172,1323.8,1323.7,25.67638798]
[1673298896604,1.1317172,1323.8,1323.7,51.67638798]
[1673298897191,1.1317172,1323.8,1323.7,25.67638798]
[1673298898239,2.82961563,1323.8,1323.7,25.67638798]
[1673298898497,1.1317172,1323.8,1323.7,29.80453378]
[1673298899031,1.13190167,1323.8,1323.7,29.80453378]
[1673298899189,1.13190167,1323.8,1323.7,41.80453378]
[1673298899531,2.8298001,1323.8,1323.7,41.80453378]
[1673298899748,2.8298001,1323.8,1323.7,57.80453378]
[1673298900144,2.8298001,1323.8,1323.7,49.80453378]
[1673298900359,3.96176301,1323.8,1323.7,34.69537378]
[1673298900600,3.96176301,1323.8,1323.7,28.01264798]
[1673298900810,3.96176301,1323.8,1323.7,35.56722798]
[1673298901184,3.96176301,1323.8,1323.7,10.56722798]
[1673298901395,3.96176301,1323.8,1323.7,3.01264798]
[1673298901638,3.96176301,1323.8,1323.7,2.99664798]
[1673298902339,3.96176301,1323.8,1323.7,10.55122798]
[1673298902549,2.83011538,1323.8,1323.7,29.04907878]
[1673298902807,1.13215581,1323.8,1323.7,29.04907878]
[1673298903031,2.15751471,1323.9,1323.7,33.73517602]
[1673298903182,2.15751471,1323.9,1323.7,31.8607371]
[1673298903183,1.13217791,1323.8,1323.7,31.8607371]
[1673298903524,2.06651471,1323.9,1323.8,23.78669059]
[1673298903865,2.06651471,1323.9,1323.8,23.80269059]
[1673298904868,2.06651471,1323.9,1323.8,16.24868059]
[1673298905075,4.33037929,1323.9,1323.8,1.14066059]
[1673298905310,4.33037929,1323.9,1323.8,1.12466059]
[1673298905493,4.33037929,1323.9,1323.8,8.67867059]
[1673298905711,4.33037929,1323.9,1323.8,8.69467059]
[1673298905946,2.63248086,1323.9,1323.8,16.24868059]
[1673298906277,5.4623206,1323.9,1323.8,16.24868059]
[1673298906453,5.5533206,1323.9,1323.8,16.24868059]
[1673298907066,2.72348086,1323.9,1323.8,16.24868059]
[1673298907273,2.63248086,1323.9,1323.8,16.24868059]
[1673298907746,4.33081954,1323.9,1323.8,19.24868059]
[1673298908985,4.33081954,1323.9,1323.8,11.69467059]
[1673298909351,2.63248086,1323.9,1323.8,11.69467059]
[1673298910185,2.63248086,1323.9,1323.8,19.24868059]
[1673298910557,2.63248086,1323.9,1323.8,11.69467059]
[1673298910771,5.4623206,1323.9,1323.8,11.69467059]
[1673298910982,5.5533206,1323.9,1323.8,4.14066059]
[1673298911222,5.5533206,1323.9,1323.8,11.67867059]
[1673298911453,2.72348086,1323.9,1323.8,11.69467059]
[1673298911664,5.4623206,1323.9,1323.8,11.69467059]
[1673298911978,5.5533206,1323.9,1323.8,11.69467059]
[1673298912232,2.72348086,1323.9,1323.8,11.69467059]
[1673298912503,2.63248086,1323.9,1323.8,4.14066059]
[1673298912733,4.33092079,1323.9,1323.8,4.12466059]
[1673298913764,2.63248086,1323.9,1323.8,4.12466059]
[1673298915005,4.33093418,1323.9,1323.8,4.12466059]
[1673298915434,4.33094772,1323.9,1323.8,4.12466059]
[1673298915764,4.33094791,1323.9,1323.8,4.12466059]
[1673298915973,4.33094763,1323.9,1323.8,4.12466059]
[1673298916134,2.63248086,1323.9,1323.8,4.12466059]
[1673298916664,4.33096961,1323.9,1323.8,4.12466059]
[1673298916871,4.33095427,1323.9,1323.8,4.12466059]
[1673298917085,4.33098553,1323.9,1323.8,4.12466059]
[1673298917331,2.06712095,1323.9,1323.8,34.34070059]
[1673298917546,2.06712095,1323.9,1323.8,38.07853037]
[1673298917713,3.19940612,1323.9,1323.8,38.07853037]
[1673298918391,3.19940612,1323.9,1323.8,56.07853037]
[1673298918549,3.19940612,1323.9,1323.8,52.32218101]
[1673298918760,1.50090145,1323.9,1323.8,41.87619101]
[1673298918972,0.36861628,1323.9,1323.8,51.08489901]
[1673298919178,1.50090145,1323.9,1323.8,48.27351571]
[1673298919421,1.50090145,1323.9,1323.8,51.08493077]
[1673298919819,1.50090145,1323.9,1323.8,48.27351571]
[1673298920039,1.50090145,1323.9,1323.8,51.08492067]
[1673298920652,1.50090145,1323.9,1323.8,51.08489626]
[1673298920653,0.36861628,1323.9,1323.8,51.08489626]
[1673298920884,0.36550027,1323.9,1323.8,77.21793873]
[1673298921248,0.36550027,1323.9,1323.8,82.29777077]
[1673298921439,0.36550027,1323.9,1323.8,72.53088626]
[1673298921749,1.49778544,1323.9,1323.8,50.08848571]
[1673298921962,1.49778544,1323.9,1323.8,52.41650037]
[1673298922389,1.49778544,1323.9,1323.8,54.29078972]
[1673298922546,1.49778544,1323.9,1323.8,52.41650037]
[1673298922759,1.49778544,1323.9,1323.8,39.41650037]
[1673298923002,1.49778544,1323.9,1323.8,48.41650037]
[1673298923225,0.36550027,1323.9,1323.8,50.29079188]
[1673298923394,0.36550027,1323.9,1323.8,53.29079188]
[1673298923605,0.36550027,1323.9,1323.8,60.84480188]
[1673298923846,0.36550027,1323.9,1323.8,71.20767372]
[1673298924169,0.36550027,1323.9,1323.8,53.84230437]
[1673298924329,0.36550027,1323.9,1323.8,64.20767008]
[1673298924544,0.36550027,1323.9,1323.8,53.84230437]
[1673298924754,0.36550027,1323.9,1323.8,61.84230437]
[1673298925215,0.36550027,1323.9,1323.8,59.96801286]
[1673298925804,0.36550027,1323.9,1323.8,56.96801286]
[1673298928067,0.36550027,1323.9,1323.8,77.74796334]
[1673298928382,0.36550027,1323.9,1323.8,73.00529892]
[1673298928775,0.36550027,1323.9,1323.8,70.19395334]
[1673298928955,0.36550027,1323.9,1323.8,80.55925774]
[1673298929164,0.36550027,1323.9,1323.8,73.00524774]
[1673298929620,0.36550027,1323.9,1323.8,80.55925774]
[1673298929813,0.36550027,1323.9,1323.8,73.00524774]
[1673298930268,0.36550027,1323.9,1323.8,70.19395334]
[1673298930479,0.36550027,1323.9,1323.8,38.13816308]
[1673298930791,0.36550027,1323.9,1323.8,31.69217308]
[1673298930949,0.36550027,1323.9,1323.8,39.24618308]
[1673298931317,1.49778544,1323.9,1323.8,47.69217308]
[1673298931528,1.49778544,1323.9,1323.8,37.13816308]
[1673298931529,9.05501953,1323.9,1323.8,37.13816308]
[1673298931693,17.26567903,1323.9,1323.8,19.13816308]
[1673298931905,17.26567903,1323.9,1323.8,9.13816308]
[1673298931906,3.2900329,1323.9,1323.8,9.13816308]
[1673298932115,3.1990329,1323.9,1323.8,9.13816308]
[1673298932319,1.50052823,1323.9,1323.8,9.13816308]
[1673298932955,1.50052823,1323.9,1323.8,12.13816308]
[1673298933898,14.227253,1324.0,1323.8,12.13816308]
[1673298933899,12.52874833,1324.0,1323.9,0.44547177]
[1673298934529,14.22569224,1324.0,1323.9,0.44547177]
[1673298934741,12.52874833,1324.0,1323.9,0.44547177]
[1673298934949,12.52874833,1324.0,1323.9,0.39547177]
[1673298935585,14.22584024,1324.0,1323.9,0.39547177]
[1673298935795,4.95889828,1324.0,1323.9,0.39547177]
[1673298936043,4.86789828,1324.0,1323.9,7.94891177]
[1673298936250,4.86789828,1324.0,1323.9,0.41147177]
[1673298936479,4.86789828,1324.0,1323.9,0.39547177]
[1673298937319,4.86789828,1324.0,1323.9,7.94891177]
[1673298937638,2.6040337,1324.0,1323.9,7.96491177]
[1673298937847,2.6040337,1324.0,1323.9,5.47475716]
[1673298938364,2.6060337,1324.0,1323.9,8.47275716]
[1673298938586,0.90694375,1324.0,1323.9,31.13507716]
[1673298938951,0.90694375,1324.0,1323.9,41.45572857]
[1673298939199,0.90694375,1324.0,1323.9,32.02819716]
[1673298939367,0.90694375,1324.0,1323.9,47.58163716]
[1673298939577,0.90694375,1324.0,1323.9,23.58163716]
[1673298940466,0.90694375,1324.0,1323.9,20.58163716]
[1673298940673,17.7097737,1324.0,1323.9,3.41147177]
[1673298940885,17.8007737,1324.0,1323.9,3.39547177]
[1673298941256,10.2479037,1324.0,1323.9,3.39547177]
[1673298941575,2.6950337,1324.0,1323.9,3.39547177]
[1673298941795,10.1569037,1324.0,1323.9,3.39547177]
[1673298942008,10.2479037,1324.0,1323.9,3.39547177]
[1673298942219,17.8007737,1324.0,1323.9,3.39547177]
[1673298942457,20.06463828,1324.0,1323.9,3.39547177]
[1673298942620,2.6950337,1324.0,1323.9,3.39547177]
[1673298942831,2.6040337,1324.0,1323.9,5.29700595]
[1673298943084,2.6040337,1324.0,1323.9,5.31300595]
[1673298943510,0.90694375,1324.0,1323.9,27.97332595]
[1673298943677,0.90694375,1324.0,1323.9,12.86644595]
[1673298943884,2.03822595,1324.0,1323.9,12.86644595]
[1673298944142,2.03822595,1324.0,1323.9,5.31300595]
[1673298944306,19.97363828,1324.0,1323.9,3.41147177]
[1673298944517,20.06463828,1324.0,1323.9,3.39547177]
[1673298944864,4.95889828,1324.0,1323.9,3.39547177]
[1673298945078,4.86789828,1324.0,1323.9,3.39547177]
[1673298946217,12.42076828,1324.0,1323.9,3.39547177]
[1673298946420,12.51176828,1324.0,1323.9,3.39547177]
[1673298946740,4.95889828,1324.0,1323.9,23.39547177]
[1673298946952,4.86789828,1324.0,1323.9,23.41147177]
[1673298947178,2.6040337,1324.0,1323.9,23.41147177]
[1673298947505,2.6040337,1324.0,1323.9,3.41147177]
[1673298947819,2.6040337,1324.0,1323.9,3.39547177]
[1673298948039,3.73547166,1324.0,1323.9,3.39547177]
[1673298948343,3.7354914,1324.0,1323.9,3.39547177]
[1673298948511,2.6040337,1324.0,1323.9,3.39547177]
[1673298949586,2.6040337,1324.0,1323.9,10.94891177]
[1673298949804,2.6040337,1324.0,1323.9,10.96491177]
[1673298950219,2.6040337,1324.0,1323.9,29.96491177]
[1673298950428,2.6040337,1324.0,1323.9,31.29326289]
[1673298950821,2.6040337,1324.0,1323.9,12.29326289]
[1673298952204,2.6040337,1324.0,1323.9,34.29326289]
[1673298952685,2.6040337,1324.0,1323.9,12.29326289]
[1673298952890,2.6040337,1324.0,1323.9,10.96491177]
[1673298953792,3.73582637,1324.0,1323.9,39.07179177]
[1673298954334,3.73582637,1324.0,1323.9,26.07179177]
[1673298954726,2.6040337,1324.0,1323.9,26.07179177]
[1673298956614,4.86789828,1324.0,1323.9,26.07179177]
[1673298957034,4.86789828,1324.0,1323.9,18.51835177]
[1673298957288,4.86789828,1324.0,1323.9,3.41147177]
[1673298957500,4.86789828,1324.0,1323.9,3.39547177]
[1673298957691,25.82941833,1324.0,1323.9,3.39547177]
[1673298957889,10.81467833,1324.0,1323.9,3.39547177]
[1673298958106,21.19738807,1324.0,1323.9,3.39547177]
[1673298958344,13.64451807,1324.0,1323.9,3.39547177]
[1673298958931,3.26180833,1324.0,1323.9,3.39547177]
[1673298959306,6.00064807,1324.0,1323.9,3.39547177]
[1673298959469,13.64451807,1324.0,1323.9,3.39547177]
[1673298959684,13.64451807,1324.0,1323.9,3.39336274]
[1673298960823,10.81467833,1324.0,1323.9,3.39336274]
[1673298961062,13.64451807,1324.0,1323.9,3.39336274]
[1673298961259,10.81467833,1324.0,1323.9,3.39336274]
[1673298961597,18.36754833,1324.0,1323.9,3.39336274]
[1673298961815,13.64451807,1324.0,1323.9,3.39336274]
[1673298962450,28.75025807,1324.0,1323.9,3.39336274]
[1673298962809,28.75025807,1324.0,1323.9,0.39336274]
[1673298962810,20.64752349,1324.0,1323.9,0.39336274]
[1673298963346,34.97972304,1324.0,1323.9,0.39336274]
[1673298963610,27.08655375,1324.0,1323.9,0.39336274]
[1673298964239,19.53368375,1324.0,1323.9,0.39336274]
[1673298964771,32.91693446,1324.0,1323.9,0.39336274]
[1673298966502,29.91693446,1324.0,1323.9,0.39336274]
[1673298969498,27.08655375,1324.0,1323.9,0.39336274]
[1673298969648,29.91598282,1324.0,1323.9,0.39336274]
[1673298969859,27.08655375,1324.0,1323.9,0.39336274]
[1673298970432,30.88421439,1324.0,1323.9,0.39336274]
[1673298970647,38.43708439,1324.0,1323.9,0.39336274]
[1673298971963,38.43708439,1324.0,1323.9,0.82919209]
[1673298973581,41.26552661,1324.0,1323.9,0.82919209]
[1673298974170,41.26552166,1324.0,1323.9,0.82919209]
[1673298979327,41.26511945,1324.0,1323.9,0.82919209]
[1673298980102,41.26511945,1324.0,1323.9,0.82569598]
[1673298980636,46.33089981,1324.0,1323.9,0.82569598]
[1673298980866,43.50286475,1324.0,1323.9,0.82569598]
[1673298981049,44.06956475,1324.0,1323.9,0.82569598]
[1673298981217,43.50286475,1324.0,1323.9,0.82569598]
[1673298982174,55.51486475,1324.0,1323.6,0.066]
[1673298982390,55.51486475,1324.0,1323.4,11.49443201]
[1673298982391,16.24631208,1323.7,1323.4,8.6385]
[1673298982614,24.36616,1323.5,1323.4,8.6385]
[1673298982873,24.45716,1323.5,1323.4,0.016]
[1673298982997,24.45716,1323.5,1323.2,23.97427405]
[1673298983213,1.711,1323.4,1323.3,1.87499924]
[1673298983465,23.25687459,1323.4,1323.2,24.02427405]
[1673298983684,23.34787459,1323.4,1323.3,3.0]
[1673298983894,23.34787459,1323.4,1323.3,16.0]
[1673298984102,23.34787459,1323.4,1323.3,16.016]
[1673298984627,23.34787459,1323.4,1323.3,3.016]
[1673298984948,23.34787459,1323.4,1323.2,8.11313158]
[1673298985106,23.34787459,1323.4,1323.2,8.06313158]
[1673298986499,1.714,1323.3,1323.2,0.06313158]
[1673298986695,24.38458,1323.3,1323.2,3.04713158]
[1673298987042,24.47558,1323.3,1323.2,3.04713158]
[1673298988193,24.47558,1323.3,1323.2,2.99713158]
[1673298988571,26.17658,1323.3,1323.1,8.79205895]
[1673298988816,26.10129,1323.2,1323.1,8.74205895]
[1673298988985,26.19229,1323.2,1323.1,8.74205895]
[1673298989517,26.19229,1323.2,1323.1,0.06455895]
[1673298989727,26.19229,1323.2,1323.1,0.04855895]
[1673298992723,25.19229,1323.2,1323.1,0.04855895]
[1673298995519,32.74972,1323.2,1323.1,0.04855895]
[1673298996817,33.73572,1323.2,1323.1,0.04855895]
[1673298997395,35.45172,1323.2,1322.9,0.1170878]
[1673298997657,3.418,1323.0,1322.9,0.0510878]
[1673298997824,33.65228,1323.0,1322.9,0.0510878]
[1673298998039,33.74328,1323.0,1322.9,0.0510878]
[1673298998361,42.52777044,1323.0,1322.9,0.0510878]
[1673298998708,44.24077044,1323.0,1322.9,0.0510878]
[1673298999293,44.47077044,1323.0,1322.9,0.0510878]
[1673298999506,45.03797044,1323.0,1322.9,0.0510878]
[1673298999851,37.47940044,1323.0,1322.9,0.0510878]
[1673299000239,37.24940044,1323.0,1322.9,0.0510878]
[1673299000664,35.47940044,1323.0,1322.9,0.0510878]
[1673299001307,35.47940044,1323.0,1322.9,7.8e-06]
[1673299003081,37.19040044,1323.0,1322.9,7.8e-06]
[1673299004870,38.32185297,1323.0,1322.9,7.8e-06]
[1673299005080,37.19040044,1323.0,1322.9,7.8e-06]
[1673299006174,44.14240044,1323.0,1322.8,9.28e-06]
[1673299006387,17.27579604,1322.9,1322.5,0.05654919]
[1673299006596,46.57574604,1322.8,1322.5,0.05654919]
[1673299006812,8.77659604,1322.7,1322.5,0.05654919]
[1673299006970,36.77510064,1322.6,1322.5,0.05654919]
[1673299007177,36.86610064,1322.6,1322.5,0.05654919]
[1673299012008,47.53869322,1322.6,1322.5,0.05654919]
[1673299012172,47.53869322,1322.6,1322.4,0.0566533]
[1673299012173,3.0,1322.5,1322.4,0.0566533]
[1673299012378,22.89009604,1322.5,1322.4,0.0566533]
[1673299012628,45.66538604,1322.5,1322.4,0.0566533]
[1673299012851,45.66538604,1322.5,1322.4,3.3e-06]
[1673299013007,3.0,1322.4,1322.3,3.46e-06]
[1673299013213,14.49459604,1322.4,1322.3,3.46e-06]
[1673299013428,37.27159604,1322.4,1322.3,3.46e-06]
[1673299014726,32.29266064,1322.4,1322.3,3.46e-06]
[1673299014900,37.27159604,1322.4,1322.3,3.46e-06]
[1673299016842,37.83899604,1322.4,1322.3,3.46e-06]
[1673299017681,29.86006064,1322.4,1322.3,3.46e-06]
[1673299018258,33.47999604,1322.4,1322.3,3.46e-06]
[1673299021409,28.50106064,1322.4,1322.3,3.46e-06]
[1673299022780,33.47999604,1322.4,1322.3,3.46e-06]
[1673299022985,34.84999604,1322.4,1322.3,3.46e-06]
[1673299025886,29.87106064,1322.4,1322.3,3.46e-06]
[1673299026252,34.28259604,1322.4,1322.3,3.46e-06]
[1673299026711,41.84459604,1322.4,1322.3,3.46e-06]
[1673299028152,36.86566064,1322.4,1322.3,3.46e-06]
[1673299028804,7.653,1322.4,1322.3,3.46e-06]
[1673299029012,0.091,1322.4,1322.3,3.46e-06]
[1673299029345,30.58635,1322.5,1322.3,3.46e-06]
[1673299029559,7.562,1322.4,1322.3,3.46e-06]
[1673299029749,6.52706675,1322.4,1322.3,3.46e-06]
[1673299030088,14.08906675,1322.4,1322.3,3.46e-06]
[1673299037881,6.52706675,1322.4,1322.3,3.46e-06]
[1673299038213,14.08906675,1322.4,1322.3,3.46e-06]
[1673299038382,6.52706675,1322.4,1322.3,3.46e-06]
[1673299039172,6.5234483,1322.4,1322.3,3.46e-06]
[1673299039648,14.0854483,1322.4,1322.3,3.46e-06]
[1673299042589,6.5234483,1322.4,1322.3,3.46e-06]
[1673299042747,14.0854483,1322.4,1322.3,3.46e-06]
[1673299044681,15.21690083,1322.4,1322.3,3.46e-06]
[1673299046651,7.65490083,1322.4,1322.3,3.46e-06]
[1673299047316,15.21690083,1322.4,1322.3,3.46e-06]
[1673299047941,1.22245253,1322.4,1322.3,3.46e-06]
[1673299048160,3.95990294,1322.5,1322.3,24.05774346]
[1673299048161,1.22245253,1322.5,1322.3,24.05774346]
[1673299048315,1.13145253,1322.5,1322.4,1.37]
[1673299048637,1.13145253,1322.5,1322.4,28.426]
[1673299048988,2.82862339,1322.6,1322.4,28.442]
[1673299049206,1.13145253,1322.5,1322.4,27.072]
[1673299049531,2.82862339,1322.6,1322.4,32.41740282]
[1673299049727,2.82862339,1322.6,1322.5,1.36]
[1673299051396,1.69717086,1322.6,1322.5,1.36]
[1673299051724,2.82951926,1322.6,1322.5,8.92143]
[1673299051932,2.82951926,1322.6,1322.5,8.93743]
[1673299051933,1.69717086,1322.6,1322.5,8.93743]
[1673299052126,1.69717086,1322.6,1322.5,12.18305828]
[1673299052337,3.95990294,1322.6,1322.5,1.376]
[1673299052547,2.26273208,1322.6,1322.4,15.97328282]
[1673299052761,2.83104515,1322.5,1322.4,15.92328282]
[1673299052935,1.69862709,1322.5,1322.4,6.99140282]
[1673299053146,1.69862709,1322.5,1322.4,3.016]
[1673299053464,1.69862709,1322.5,1322.4,3.0]
[1673299054616,16.82148709,1322.5,1322.4,3.0]
[1673299054833,19.17522296,1322.5,1322.4,3.0]
[1673299055083,19.17522296,1322.5,1322.3,4.43600346]
[1673299055245,1.13243525,1322.4,1322.3,4.37000346]
[1673299055453,1.13243525,1322.4,1322.3,5.34226534]
[1673299055719,1.13243525,1322.4,1322.3,5.35826534]
[1673299056034,1.13243525,1322.4,1322.3,12.92084534]
[1673299056186,1.13243525,1322.4,1322.3,28.04600534]
[1673299058404,2.83106613,1322.5,1322.3,28.04600534]
[1673299059444,1.13243525,1322.4,1322.3,28.04600534]
[1673299059659,2.83106613,1322.5,1322.3,28.04600534]
[1673299059915,1.13243525,1322.4,1322.3,28.04600534]
[1673299060742,2.83106613,1322.5,1322.3,28.04600534]
[1673299060955,2.83106613,1322.5,1322.3,31.84366598]
[1673299061179,2.83106613,1322.5,1322.4,6.53466064]
[1673299061180,1.13243525,1322.5,1322.4,6.53466064]
[1673299061496,1.13243525,1322.5,1322.4,37.14610459]
[1673299064070,1.13243525,1322.5,1322.4,36.14610459]
[1673299064855,1.13243525,1322.5,1322.4,43.70810459]
[1673299065284,1.13243525,1322.5,1322.4,45.58439009]
[1673299065454,1.13243525,1322.5,1322.4,62.69831597]
[1673299065666,1.13243525,1322.5,1322.4,63.83135844]
[1673299066283,1.13243525,1322.5,1322.4,88.35435844]
[1673299068482,5.25e-06,1322.5,1322.4,96.21892214]
[1673299068652,5.25e-06,1322.5,1322.4,104.37178348]
[1673299068956,5.25e-06,1322.5,1322.4,104.39101306]
[1673299069166,5.25e-06,1322.5,1322.4,102.69144936]
[1673299071642,5.25e-06,1322.5,1322.4,102.68944936]
[1673299071849,5.25e-06,1322.5,1322.4,102.69144936]
[1673299072694,1.69863088,1322.9,1322.5,7.523]
[1673299072903,1.69863088,1322.9,1322.8,25.40916]
[1673299073155,1.69863088,1322.9,1322.8,25.42516]
[1673299075264,1.78963088,1323.0,1322.8,44.78254064]
[1673299075464,5.21785395,1323.1,1322.9,5.74]
[1673299075465,1.91633765,1323.1,1322.9,5.74]
[1673299075691,1.82533765,1323.1,1323.0,32.96428]
[1673299075872,1.82533765,1323.1,1323.0,35.98028]
[1673299076572,0.12670677,1323.1,1323.0,35.98028]
[1673299078259,0.12670677,1323.1,1323.0,28.42171]
[1673299078488,0.12670677,1323.1,1323.0,3.016]
[1673299078678,0.12670677,1323.1,1322.9,3.066]
[1673299079018,0.12670677,1323.1,1322.9,18.11759]
[1673299079160,0.12670677,1323.1,1322.9,18.13359]
[1673299079370,0.12670677,1323.1,1322.9,25.69252]
[1673299079831,15.24274677,1323.1,1322.9,3.016]
[1673299080033,15.33374677,1323.1,1322.9,3.0]
[1673299080469,22.89178677,1323.1,1322.9,3.0]
[1673299080799,24.59041765,1323.1,1322.9,3.0]
[1673299082761,4.12889016,1323.0,1322.9,3.0]
[1673299083170,6.05963088,1323.0,1322.7,0.066]
[1673299083381,6.05963088,1323.0,1322.5,21.126]
[1673299083382,1.12904256,1322.9,1322.5,21.126]
[1673299083696,1.12904256,1322.9,1322.5,8.016]
[1673299083837,22.67916,1322.8,1322.5,8.016]
[1673299084012,22.77016,1322.8,1322.5,8.016]
[1673299084654,22.77016,1322.8,1322.5,0.016]
[1673299084938,23.89920256,1322.8,1322.5,3.0]
[1673299085282,25.59783344,1322.8,1322.5,3.0]
[1673299085914,1.12904256,1322.7,1322.5,3.0]